[Event "Titled Tuesday Blitz November 01 Early 2022"]
[White "Shandrygin, Nikita"]
[Black "Johnson, Ben"]
[WhiteFideId "24198668"]
[BlackFideId "2010917"]
[WhiteElo "2323"]
[BlackElo "2134"]
[Result "1-0"]
[Round "04"]
[TimeControl "180+1"]
[Date "2022.11.02"]
[WhiteClock "0:00:55"]
[BlackClock "0:00:34"]

1. e4 {[%clk 0:03:00]}  c5 {[%clk 0:02:55]} 2. Nf3 {[%clk 0:03:00]}  Nc6 {[%clk 0:02:56]} 3. d4 {[%clk 0:03:00]}  cxd4 {[%clk 0:02:57]} 4. Nxd4 {[%clk 0:03:01]}  Nf6 {[%clk 0:02:57]} 5. Nc3 {[%clk 0:03:02]}  e5 {[%clk 0:02:57]} 6. Ndb5 {[%clk 0:03:02]}  d6 {[%clk 0:02:58]} 7. Bg5 {[%clk 0:03:02]}  a6 {[%clk 0:02:58]} 8. Na3 {[%clk 0:03:02]}  b5 {[%clk 0:02:59]} 9. Nd5 {[%clk 0:03:02]}  Be7 {[%clk 0:02:59]} 10. Bxf6 {[%clk 0:03:02]}  Bxf6 {[%clk 0:03:00]} 11. c3 {[%clk 0:03:03]}  O-O {[%clk 0:03:00]} 12. Nc2 {[%clk 0:03:03]}  Rb8 {[%clk 0:03:01]} 13. g3 {[%clk 0:03:02]}  Bg5 {[%clk 0:02:58]} 14. Bg2 {[%clk 0:03:02]}  g6 {[%clk 0:02:55]} 15. h4 {[%clk 0:03:02]}  Bh6 {[%clk 0:02:55]} 16. h5 {[%clk 0:02:40]}  Bg5 {[%clk 0:02:55]} 17. Qe2 {[%clk 0:02:35]}  Be6 {[%clk 0:02:46]} 18. Rd1 {[%clk 0:02:34]}  a5 {[%clk 0:02:38]} 19. f4 {[%clk 0:02:14]}  exf4 {[%clk 0:02:34]} 20. gxf4 {[%clk 0:02:15]}  Bh4+ {[%clk 0:02:25]} 21. Kf1 {[%clk 0:02:13]}  f5 {[%clk 0:01:52]} 22. hxg6 {[%clk 0:01:55]}  hxg6 {[%clk 0:01:48]} 23. e5 {[%clk 0:01:32]}  dxe5 {[%clk 0:01:40]} 24. Nde3 {[%clk 0:01:16]}  exf4 {[%clk 0:01:02]} 25. Rxd8 {[%clk 0:01:08]}  Bxd8 {[%clk 0:01:03]} 26. Bxc6 {[%clk 0:01:05]}  fxe3 {[%clk 0:00:57]} 27. Qh2 {[%clk 0:01:05]}  Bc4+ {[%clk 0:00:51]} 28. Kg1 {[%clk 0:00:57]}  Bf6 {[%clk 0:00:34]} 29. Qh7# {[%clk 0:00:55]} 1-0


[Site "https://www.chess.com"]

[Event "Titled Tuesday Blitz November 01 Early 2022"]
[White "Silva Lucena, Cristian"]
[Black "Larina, Maria"]
[WhiteFideId "2232588"]
[BlackFideId "24113182"]
[WhiteElo "2223"]
[BlackElo "1848"]
[Result "1-0"]
[Round "04"]
[TimeControl "180+1"]
[Date "2022.11.02"]
[WhiteClock "0:00:48"]
[BlackClock "0:00:20"]

1. e4 {[%clk 0:03:00]}  c6 {[%clk 0:02:59]} 2. d4 {[%clk 0:02:57]}  d5 {[%clk 0:02:55]} 3. e5 {[%clk 0:02:57]}  c5 {[%clk 0:02:55]} 4. dxc5 {[%clk 0:02:56]}  Nc6 {[%clk 0:02:54]} 5. a3 {[%clk 0:02:51]}  Nxe5 {[%clk 0:02:53]} 6. b4 {[%clk 0:02:50]}  a5 {[%clk 0:02:52]} 7. Bb5+ {[%clk 0:02:41]}  Nc6 {[%clk 0:02:50]} 8. Bb2 {[%clk 0:02:39]}  Nf6 {[%clk 0:02:27]} 9. Nd2 {[%clk 0:02:35]}  e6 {[%clk 0:02:27]} 10. Ngf3 {[%clk 0:02:35]}  Bd7 {[%clk 0:02:22]} 11. O-O {[%clk 0:02:33]}  axb4 {[%clk 0:02:15]} 12. Bxc6 {[%clk 0:02:31]}  Bxc6 {[%clk 0:02:11]} 13. axb4 {[%clk 0:02:31]}  Rxa1 {[%clk 0:02:06]} 14. Qxa1 {[%clk 0:02:32]}  Be7 {[%clk 0:02:06]} 15. Ne5 {[%clk 0:02:24]}  O-O {[%clk 0:02:04]} 16. Ndf3 {[%clk 0:02:24]}  Ne4 {[%clk 0:01:59]} 17. Nd4 {[%clk 0:02:23]}  Qc7 {[%clk 0:01:49]} 18. b5 {[%clk 0:02:16]}  Be8 {[%clk 0:01:46]} 19. c6 {[%clk 0:02:10]}  Qxe5 {[%clk 0:01:32]} 20. Nf3 {[%clk 0:01:59]}  Qc7 {[%clk 0:01:26]} 21. Bxg7 {[%clk 0:01:57]}  bxc6 {[%clk 0:01:23]} 22. Bxf8 {[%clk 0:01:40]}  Bxf8 {[%clk 0:01:24]} 23. bxc6 {[%clk 0:01:40]}  Bxc6 {[%clk 0:01:22]} 24. Qc1 {[%clk 0:01:38]}  Qe7 {[%clk 0:01:08]} 25. Qf4 {[%clk 0:01:36]}  Qf6 {[%clk 0:01:02]} 26. Qc7 {[%clk 0:01:35]}  Bb5 {[%clk 0:01:02]} 27. Rb1 {[%clk 0:01:32]}  Bc4 {[%clk 0:00:52]} 28. h4 {[%clk 0:01:26]}  h6 {[%clk 0:00:44]} 29. Qc8 {[%clk 0:01:22]}  Qe7 {[%clk 0:00:32]} 30. Rb7 {[%clk 0:01:19]}  Qc5 {[%clk 0:00:26]} 31. Qe8 {[%clk 0:00:52]}  Qxf2+ {[%clk 0:00:21]} 32. Kh1 {[%clk 0:00:49]}  Qg3 {[%clk 0:00:20]} 33. Qxf7+ {[%clk 0:00:48]} 1-0


[Site "https://www.chess.com"]

[Event "Titled Tuesday Blitz November 01 Early 2022"]
[White "Srebrnic, Marko"]
[Black "Velikanov, Alexander"]
[WhiteFideId "14603616"]
[BlackFideId "2039290"]
[WhiteElo "2340"]
[BlackElo "2259"]
[Result "1-0"]
[Round "04"]
[TimeControl "180+1"]
[Date "2022.11.02"]
[WhiteClock "0:00:06"]
[BlackClock "0:00:01"]

1. e4 {[%clk 0:03:00]}  g6 {[%clk 0:02:59]} 2. Nf3 {[%clk 0:02:57]}  Bg7 {[%clk 0:02:59]} 3. Bc4 {[%clk 0:02:57]}  c6 {[%clk 0:02:56]} 4. Bb3 {[%clk 0:02:53]}  d5 {[%clk 0:02:52]} 5. exd5 {[%clk 0:02:52]}  cxd5 {[%clk 0:02:53]} 6. O-O {[%clk 0:02:49]}  Nc6 {[%clk 0:02:48]} 7. Re1 {[%clk 0:02:42]}  Bg4 {[%clk 0:02:41]} 8. h3 {[%clk 0:02:41]}  Bxf3 {[%clk 0:02:41]} 9. Qxf3 {[%clk 0:02:42]}  Nf6 {[%clk 0:02:35]} 10. Nc3 {[%clk 0:02:40]}  d4 {[%clk 0:01:45]} 11. Ne4 {[%clk 0:02:37]}  O-O {[%clk 0:01:42]} 12. Nxf6+ {[%clk 0:02:34]}  Bxf6 {[%clk 0:01:43]} 13. d3 {[%clk 0:02:34]}  Bg7 {[%clk 0:01:43]} 14. Bg5 {[%clk 0:02:29]}  Qd7 {[%clk 0:01:43]} 15. Ba4 {[%clk 0:02:24]}  Rae8 {[%clk 0:01:41]} 16. h4 {[%clk 0:01:31]}  h6 {[%clk 0:01:28]} 17. Bd2 {[%clk 0:01:25]}  Kh8 {[%clk 0:01:21]} 18. Bb5 {[%clk 0:00:57]}  f5 {[%clk 0:01:14]} 19. a4 {[%clk 0:00:45]}  e5 {[%clk 0:01:10]} 20. Qg3 {[%clk 0:00:38]}  Rf6 {[%clk 0:00:56]} 21. a5 {[%clk 0:00:34]}  a6 {[%clk 0:00:49]} 22. Bc4 {[%clk 0:00:31]}  Qd6 {[%clk 0:00:12]} 23. Ra3 {[%clk 0:00:24]}  Qc5 {[%clk 0:00:07]} 24. Rb3 {[%clk 0:00:19]}  Re7 {[%clk 0:00:07]} 25. h5 {[%clk 0:00:15]}  g5 {[%clk 0:00:07]} 26. Bxg5 {[%clk 0:00:14]}  hxg5 {[%clk 0:00:08]} 27. Qxg5 {[%clk 0:00:15]}  Kh7 {[%clk 0:00:05]} 28. Rb6 {[%clk 0:00:13]}  Qd6 {[%clk 0:00:02]} 29. Qh4 {[%clk 0:00:09]}  Bh6 {[%clk 0:00:02]} 30. g3 {[%clk 0:00:07]}  Rg7 {[%clk 0:00:02]} 31. Qh3 {[%clk 0:00:07]}  f4 {[%clk 0:00:01]} 32. Kh2 {[%clk 0:00:05]}  fxg3+ {[%clk 0:00:01]} 33. fxg3 {[%clk 0:00:06]} 1-0


[Site "https://www.chess.com"]

[Event "Titled Tuesday Blitz November 01 Early 2022"]
[White "Storey, Charles H"]
[Black "Chernobay, Artem"]
[WhiteFideId "406686"]
[BlackFideId "4167406"]
[WhiteElo "2252"]
[BlackElo "2473"]
[Result "1/2-1/2"]
[Round "04"]
[TimeControl "180+1"]
[Date "2022.11.02"]
[WhiteClock "0:00:06"]
[BlackClock "0:00:10"]

1. e4 {[%clk 0:03:00]}  e6 {[%clk 0:02:59]} 2. d4 {[%clk 0:02:56]}  d5 {[%clk 0:02:59]} 3. exd5 {[%clk 0:02:56]}  exd5 {[%clk 0:02:58]} 4. Nf3 {[%clk 0:02:55]}  Nc6 {[%clk 0:02:56]} 5. c3 {[%clk 0:02:50]}  Bg4 {[%clk 0:02:55]} 6. Be2 {[%clk 0:02:50]}  Bd6 {[%clk 0:02:54]} 7. h3 {[%clk 0:02:48]}  Bh5 {[%clk 0:02:51]} 8. Nbd2 {[%clk 0:02:46]}  Nge7 {[%clk 0:02:50]} 9. Ne5 {[%clk 0:02:41]}  Bxe2 {[%clk 0:02:45]} 10. Qxe2 {[%clk 0:02:41]}  O-O {[%clk 0:02:44]} 11. O-O {[%clk 0:02:38]}  Re8 {[%clk 0:02:37]} 12. Nxc6 {[%clk 0:02:31]}  bxc6 {[%clk 0:02:27]} 13. Qd3 {[%clk 0:02:25]}  Ng6 {[%clk 0:02:22]} 14. Nf3 {[%clk 0:02:25]}  Rb8 {[%clk 0:02:15]} 15. b4 {[%clk 0:02:23]}  a5 {[%clk 0:02:10]} 16. a3 {[%clk 0:02:23]}  Ra8 {[%clk 0:01:58]} 17. Bg5 {[%clk 0:02:21]}  Qd7 {[%clk 0:01:56]} 18. Rfe1 {[%clk 0:02:13]}  h6 {[%clk 0:01:53]} 19. Bd2 {[%clk 0:02:13]}  Rxe1+ {[%clk 0:01:27]} 20. Rxe1 {[%clk 0:02:11]}  axb4 {[%clk 0:01:27]} 21. axb4 {[%clk 0:02:11]}  Qc8 {[%clk 0:01:24]} 22. b5 {[%clk 0:01:47]}  cxb5 {[%clk 0:01:22]} 23. Qxb5 {[%clk 0:01:47]}  c6 {[%clk 0:01:22]} 24. Qd3 {[%clk 0:01:45]}  Ra2 {[%clk 0:01:11]} 25. Qb1 {[%clk 0:01:43]}  Ra4 {[%clk 0:01:08]} 26. Qb3 {[%clk 0:01:41]}  Ra3 {[%clk 0:01:04]} 27. Qb1 {[%clk 0:01:39]}  c5 {[%clk 0:01:02]} 28. Qb5 {[%clk 0:01:34]}  Kh7 {[%clk 0:00:56]} 29. h4 {[%clk 0:01:24]}  cxd4 {[%clk 0:00:53]} 30. h5 {[%clk 0:01:23]}  dxc3 {[%clk 0:00:49]} 31. hxg6+ {[%clk 0:01:23]}  fxg6 {[%clk 0:00:49]} 32. Bc1 {[%clk 0:01:13]}  Ra1 {[%clk 0:00:27]} 33. Qxd5 {[%clk 0:01:11]}  Bb4 {[%clk 0:00:25]} 34. Qd4 {[%clk 0:00:59]}  Bc5 {[%clk 0:00:21]} 35. Qh4 {[%clk 0:00:53]}  Bb6 {[%clk 0:00:10]} 36. Ng5+ {[%clk 0:00:34]}  Kh8 {[%clk 0:00:11]} 37. Nf7+ {[%clk 0:00:28]}  Kg8 {[%clk 0:00:11]} 38. Nd6 {[%clk 0:00:26]}  Qc6 {[%clk 0:00:09]} 39. Qc4+ {[%clk 0:00:26]}  Qxc4 {[%clk 0:00:08]} 40. Nxc4 {[%clk 0:00:27]}  Bc5 {[%clk 0:00:08]} 41. Kf1 {[%clk 0:00:25]}  c2 {[%clk 0:00:06]} 42. Ke2 {[%clk 0:00:20]}  Ra4 {[%clk 0:00:05]} 43. Ne3 {[%clk 0:00:19]}  Ra2 {[%clk 0:00:04]} 44. Kd3 {[%clk 0:00:18]}  Kh7 {[%clk 0:00:04]} 45. f3 {[%clk 0:00:16]}  Ra1 {[%clk 0:00:02]} 46. Nxc2 {[%clk 0:00:15]}  Ra2 {[%clk 0:00:03]} 47. Be3 {[%clk 0:00:14]}  Be7 {[%clk 0:00:03]} 48. Ra1 {[%clk 0:00:13]}  Rb2 {[%clk 0:00:02]} 49. Bd4 {[%clk 0:00:13]}  Rb3+ {[%clk 0:00:02]} 50. Kc4 {[%clk 0:00:12]}  Rb7 {[%clk 0:00:03]} 51. Ra7 {[%clk 0:00:11]}  Rxa7 {[%clk 0:00:04]} 52. Bxa7 {[%clk 0:00:12]}  h5 {[%clk 0:00:04]} 53. Kd3 {[%clk 0:00:10]}  g5 {[%clk 0:00:05]} 54. Be3 {[%clk 0:00:10]}  Kg6 {[%clk 0:00:05]} 55. Ke4 {[%clk 0:00:10]}  h4 {[%clk 0:00:06]} 56. Nd4 {[%clk 0:00:10]}  Kh5 {[%clk 0:00:06]} 57. Nf5 {[%clk 0:00:10]}  Bf6 {[%clk 0:00:07]} 58. Bd2 {[%clk 0:00:07]}  g4 {[%clk 0:00:07]} 59. f4 {[%clk 0:00:06]}  h3 {[%clk 0:00:07]} 60. gxh3 {[%clk 0:00:05]}  gxh3 {[%clk 0:00:07]} 61. Kf3 {[%clk 0:00:05]}  g6 {[%clk 0:00:07]} 62. Ng3+ {[%clk 0:00:04]}  Kh4 {[%clk 0:00:08]} 63. Be1 {[%clk 0:00:05]}  h2 {[%clk 0:00:08]} 64. Nf1+ {[%clk 0:00:05]}  Kh3 {[%clk 0:00:08]} 65. Nxh2 {[%clk 0:00:04]}  Kxh2 {[%clk 0:00:09]} 66. Bg3+ {[%clk 0:00:05]}  Kh3 {[%clk 0:00:08]} 67. Bf2 {[%clk 0:00:05]}  Bg7 {[%clk 0:00:08]} 68. Be3 {[%clk 0:00:05]}  Bf6 {[%clk 0:00:09]} 69. Ke4 {[%clk 0:00:06]}  Bg7 {[%clk 0:00:10]} 70. f5 {[%clk 0:00:05]}  gxf5+ {[%clk 0:00:10]} 71. Kxf5 {[%clk 0:00:06]} 1/2-1/2


[Site "https://www.chess.com"]

[Event "Titled Tuesday Blitz November 01 Early 2022"]
[White "Tarasova, Viktoriya"]
[Black "Nozdrachev, Leonid"]
[WhiteFideId "4175840"]
[BlackFideId "24113433"]
[WhiteElo "2182"]
[BlackElo "2249"]
[Result "0-1"]
[Round "04"]
[TimeControl "180+1"]
[Date "2022.11.02"]
[WhiteClock "0:00:02"]
[BlackClock "0:00:55"]

1. d4 {[%clk 0:03:00]}  Nf6 {[%clk 0:02:51]} 2. c4 {[%clk 0:03:00]}  e6 {[%clk 0:02:51]} 3. Nc3 {[%clk 0:02:59]}  Bb4 {[%clk 0:02:50]} 4. Nf3 {[%clk 0:02:58]}  O-O {[%clk 0:02:47]} 5. Bg5 {[%clk 0:02:56]}  c5 {[%clk 0:02:43]} 6. Rc1 {[%clk 0:02:51]}  d6 {[%clk 0:02:42]} 7. dxc5 {[%clk 0:02:42]}  dxc5 {[%clk 0:02:41]} 8. Qxd8 {[%clk 0:02:38]}  Rxd8 {[%clk 0:02:41]} 9. a3 {[%clk 0:02:12]}  Ba5 {[%clk 0:02:37]} 10. e3 {[%clk 0:02:07]}  Nc6 {[%clk 0:02:31]} 11. Be2 {[%clk 0:02:05]}  h6 {[%clk 0:02:27]} 12. Bxf6 {[%clk 0:01:56]}  gxf6 {[%clk 0:02:27]} 13. O-O {[%clk 0:01:57]}  Bd7 {[%clk 0:02:22]} 14. Rfd1 {[%clk 0:01:56]}  Kg7 {[%clk 0:02:15]} 15. Ne4 {[%clk 0:01:51]}  Bb6 {[%clk 0:02:05]} 16. Rd2 {[%clk 0:01:42]}  Ne5 {[%clk 0:01:48]} 17. Rcd1 {[%clk 0:01:31]}  Ba4 {[%clk 0:01:43]} 18. Rxd8 {[%clk 0:01:30]}  Bxd8 {[%clk 0:01:44]} 19. Rd2 {[%clk 0:01:20]}  Ba5 {[%clk 0:01:41]} 20. Rd6 {[%clk 0:01:05]}  Bc7 {[%clk 0:01:40]} 21. Rd2 {[%clk 0:01:03]}  Rc8 {[%clk 0:01:32]} 22. Nxc5 {[%clk 0:00:54]}  Ba5 {[%clk 0:01:31]} 23. b4 {[%clk 0:00:29]}  Rxc5 {[%clk 0:01:27]} 24. bxa5 {[%clk 0:00:27]}  Nxc4 {[%clk 0:01:21]} 25. Bxc4 {[%clk 0:00:18]}  Rxc4 {[%clk 0:01:22]} 26. h3 {[%clk 0:00:15]}  e5 {[%clk 0:01:16]} 27. Rb2 {[%clk 0:00:13]}  Bc6 {[%clk 0:01:15]} 28. Nd2 {[%clk 0:00:05]}  Ra4 {[%clk 0:01:14]} 29. Rc2 {[%clk 0:00:02]}  Rxa3 {[%clk 0:01:13]} 30. Nc4 {[%clk 0:00:02]}  Ra4 {[%clk 0:01:10]} 31. Kh2 {[%clk 0:00:02]}  Kg6 {[%clk 0:01:03]} 32. g4 {[%clk 0:00:02]}  h5 {[%clk 0:01:01]} 33. Rc3 {[%clk 0:00:01]}  h4 {[%clk 0:00:58]} 34. f4 {[%clk 0:00:01]}  Ra1 {[%clk 0:00:57]} 35. f5+ {[%clk 0:00:01]}  Kg5 {[%clk 0:00:56]} 36. e4 {[%clk 0:00:02]}  Bxe4 {[%clk 0:00:55]} 0-1


[Site "https://www.chess.com"]

[Event "Titled Tuesday Blitz November 01 Early 2022"]
[White "Tleptsok, Ruslan"]
[Black "Durarbayli, Vasif"]
[WhiteFideId "24104485"]
[BlackFideId "13402935"]
[WhiteElo "2130"]
[BlackElo "2586"]
[Result "0-1"]
[Round "04"]
[TimeControl "180+1"]
[Date "2022.11.02"]
[WhiteClock "0:00:01"]
[BlackClock "0:00:15"]

1. e4 {[%clk 0:03:00]}  c5 {[%clk 0:02:58]} 2. Nf3 {[%clk 0:03:01]}  d6 {[%clk 0:02:59]} 3. c3 {[%clk 0:03:01]}  Nf6 {[%clk 0:02:57]} 4. Bc4 {[%clk 0:03:01]}  e6 {[%clk 0:02:54]} 5. Qe2 {[%clk 0:03:01]}  Nc6 {[%clk 0:02:48]} 6. d4 {[%clk 0:03:01]}  cxd4 {[%clk 0:02:44]} 7. cxd4 {[%clk 0:03:02]}  d5 {[%clk 0:02:44]} 8. exd5 {[%clk 0:03:02]}  Nxd5 {[%clk 0:02:44]} 9. O-O {[%clk 0:03:00]}  Be7 {[%clk 0:02:43]} 10. Nc3 {[%clk 0:03:00]}  O-O {[%clk 0:02:43]} 11. Rd1 {[%clk 0:02:57]}  Bf6 {[%clk 0:02:40]} 12. Ne4 {[%clk 0:02:55]}  Nce7 {[%clk 0:02:37]} 13. Nxf6+ {[%clk 0:02:42]}  Nxf6 {[%clk 0:02:36]} 14. Bg5 {[%clk 0:02:43]}  Qd6 {[%clk 0:02:10]} 15. Bxf6 {[%clk 0:02:41]}  gxf6 {[%clk 0:02:11]} 16. Qe4 {[%clk 0:02:35]}  Rb8 {[%clk 0:01:58]} 17. Bd3 {[%clk 0:02:23]}  Ng6 {[%clk 0:01:57]} 18. h4 {[%clk 0:02:19]}  Bd7 {[%clk 0:01:04]} 19. h5 {[%clk 0:02:14]}  Bc6 {[%clk 0:00:58]} 20. Qe3 {[%clk 0:02:14]}  Nf4 {[%clk 0:00:55]} 21. d5 {[%clk 0:02:09]}  Bxd5 {[%clk 0:00:51]} 22. Be4 {[%clk 0:02:05]}  Kh8 {[%clk 0:00:46]} 23. Rd4 {[%clk 0:01:40]}  Rg8 {[%clk 0:00:41]} 24. g3 {[%clk 0:01:41]}  Qc7 {[%clk 0:00:24]} 25. Bxh7 {[%clk 0:01:05]}  Nh3+ {[%clk 0:00:18]} 26. Kh2 {[%clk 0:01:04]}  Kxh7 {[%clk 0:00:18]} 27. Kxh3 {[%clk 0:01:03]}  Rbd8 {[%clk 0:00:16]} 28. Qd3+ {[%clk 0:00:55]}  Kh8 {[%clk 0:00:16]} 29. Rd1 {[%clk 0:00:54]}  Qe7 {[%clk 0:00:15]} 30. Nh4 {[%clk 0:00:49]}  Rg5 {[%clk 0:00:15]} 31. g4 {[%clk 0:00:42]}  Rdg8 {[%clk 0:00:15]} 32. f3 {[%clk 0:00:36]}  f5 {[%clk 0:00:15]} 33. Qc3 {[%clk 0:00:35]}  Qf6 {[%clk 0:00:14]} 34. Kh2 {[%clk 0:00:17]}  fxg4 {[%clk 0:00:13]} 35. Rxg4 {[%clk 0:00:17]}  Qxc3 {[%clk 0:00:13]} 36. bxc3 {[%clk 0:00:15]}  Rxg4 {[%clk 0:00:14]} 37. fxg4 {[%clk 0:00:16]}  Rxg4 {[%clk 0:00:14]} 38. Kh3 {[%clk 0:00:16]}  Rg5 {[%clk 0:00:15]} 39. h6 {[%clk 0:00:15]}  Kh7 {[%clk 0:00:15]} 40. c4 {[%clk 0:00:14]}  Bxc4 {[%clk 0:00:14]} 41. Rd7 {[%clk 0:00:14]}  e5 {[%clk 0:00:15]} 42. Rxb7 {[%clk 0:00:13]}  Bxa2 {[%clk 0:00:15]} 43. Rxa7 {[%clk 0:00:12]}  Be6+ {[%clk 0:00:15]} 44. Kh2 {[%clk 0:00:12]}  Kxh6 {[%clk 0:00:16]} 45. Nf3 {[%clk 0:00:11]}  Rf5 {[%clk 0:00:17]} 46. Kg3 {[%clk 0:00:10]}  Kg7 {[%clk 0:00:17]} 47. Ra5 {[%clk 0:00:09]}  Kf6 {[%clk 0:00:18]} 48. Ra6 {[%clk 0:00:09]}  Rh5 {[%clk 0:00:18]} 49. Kf2 {[%clk 0:00:09]}  Rh3 {[%clk 0:00:16]} 50. Kg2 {[%clk 0:00:06]}  Rh5 {[%clk 0:00:16]} 51. Kf2 {[%clk 0:00:05]}  Kf5 {[%clk 0:00:16]} 52. Ke3 {[%clk 0:00:05]}  f6 {[%clk 0:00:16]} 53. Nd2 {[%clk 0:00:01]}  Rh3+ {[%clk 0:00:16]} 54. Ke2 {[%clk 0:00:01]}  Bd5 {[%clk 0:00:16]} 55. Ra5 {[%clk 0:00:01]}  Ke6 {[%clk 0:00:15]} 0-1


[Site "https://www.chess.com"]

[Event "Titled Tuesday Blitz November 01 Early 2022"]
[White "Tokhirjonova, Gulrukhbegim"]
[Black "Rosenberg, Evan S"]
[WhiteFideId "14203626"]
[BlackFideId "2019299"]
[WhiteElo "2236"]
[BlackElo "2379"]
[Result "1/2-1/2"]
[Round "04"]
[TimeControl "180+1"]
[Date "2022.11.02"]
[WhiteClock "0:00:14"]
[BlackClock "0:00:08"]

1. e4 {[%clk 0:02:55]}  e5 {[%clk 0:02:59]} 2. Nf3 {[%clk 0:02:54]}  Nc6 {[%clk 0:03:00]} 3. Bb5 {[%clk 0:02:50]}  Nf6 {[%clk 0:03:00]} 4. d3 {[%clk 0:02:50]}  Ne7 {[%clk 0:02:59]} 5. O-O {[%clk 0:02:46]}  c6 {[%clk 0:02:58]} 6. Ba4 {[%clk 0:02:46]}  Ng6 {[%clk 0:02:59]} 7. d4 {[%clk 0:02:45]}  Qc7 {[%clk 0:02:49]} 8. dxe5 {[%clk 0:02:29]}  Nxe5 {[%clk 0:02:42]} 9. Nc3 {[%clk 0:02:26]}  Bd6 {[%clk 0:02:09]} 10. h3 {[%clk 0:02:11]}  O-O {[%clk 0:02:08]} 11. Bg5 {[%clk 0:02:08]}  Be7 {[%clk 0:02:03]} 12. Nd4 {[%clk 0:01:58]}  d6 {[%clk 0:01:59]} 13. f4 {[%clk 0:01:55]}  Nc4 {[%clk 0:01:51]} 14. Qe2 {[%clk 0:01:04]}  b5 {[%clk 0:01:13]} 15. Bb3 {[%clk 0:01:03]}  Nxb2 {[%clk 0:00:52]} 16. Rae1 {[%clk 0:00:52]}  h6 {[%clk 0:00:48]} 17. Bh4 {[%clk 0:00:45]}  Re8 {[%clk 0:00:41]} 18. Qf3 {[%clk 0:00:33]}  Nc4 {[%clk 0:00:39]} 19. Bxc4 {[%clk 0:00:25]}  bxc4 {[%clk 0:00:39]} 20. e5 {[%clk 0:00:23]}  Nd5 {[%clk 0:00:36]} 21. Nxd5 {[%clk 0:00:21]}  cxd5 {[%clk 0:00:36]} 22. Bxe7 {[%clk 0:00:20]}  Qxe7 {[%clk 0:00:22]} 23. Qxd5 {[%clk 0:00:17]}  Be6 {[%clk 0:00:14]} 24. Qxd6 {[%clk 0:00:17]}  Qxd6 {[%clk 0:00:14]} 25. exd6 {[%clk 0:00:18]}  Rad8 {[%clk 0:00:10]} 26. Nb5 {[%clk 0:00:19]}  a6 {[%clk 0:00:10]} 27. Nc7 {[%clk 0:00:19]}  Rf8 {[%clk 0:00:10]} 28. Rd1 {[%clk 0:00:19]}  c3 {[%clk 0:00:09]} 29. Nxa6 {[%clk 0:00:19]}  Ra8 {[%clk 0:00:08]} 30. Nb4 {[%clk 0:00:19]}  Rfb8 {[%clk 0:00:07]} 31. Nc6 {[%clk 0:00:19]}  Rb2 {[%clk 0:00:05]} 32. d7 {[%clk 0:00:19]}  Bxd7 {[%clk 0:00:05]} 33. Rxd7 {[%clk 0:00:20]}  Rxc2 {[%clk 0:00:05]} 34. Nd4 {[%clk 0:00:19]}  Rd2 {[%clk 0:00:04]} 35. Rf2 {[%clk 0:00:18]}  Raxa2 {[%clk 0:00:04]} 36. Rd8+ {[%clk 0:00:16]}  Kh7 {[%clk 0:00:04]} 37. Rxd2 {[%clk 0:00:14]}  Rxd2 {[%clk 0:00:04]} 38. Rc8 {[%clk 0:00:13]}  Rxd4 {[%clk 0:00:04]} 39. Rxc3 {[%clk 0:00:14]}  Rxf4 {[%clk 0:00:04]} 40. Kh2 {[%clk 0:00:14]}  Rf6 {[%clk 0:00:04]} 41. h4 {[%clk 0:00:14]}  h5 {[%clk 0:00:04]} 42. g3 {[%clk 0:00:15]}  g6 {[%clk 0:00:05]} 43. Kh3 {[%clk 0:00:15]}  Kg7 {[%clk 0:00:05]} 44. Rc7 {[%clk 0:00:15]}  Rf5 {[%clk 0:00:05]} 45. Kg2 {[%clk 0:00:16]}  Re5 {[%clk 0:00:05]} 46. Rb7 {[%clk 0:00:16]}  Kf6 {[%clk 0:00:05]} 47. Rc7 {[%clk 0:00:17]}  Re6 {[%clk 0:00:05]} 48. Rb7 {[%clk 0:00:17]}  Re7 {[%clk 0:00:06]} 49. Rb6+ {[%clk 0:00:17]}  Re6 {[%clk 0:00:06]} 50. Rb7 {[%clk 0:00:17]}  Re2+ {[%clk 0:00:07]} 51. Kf3 {[%clk 0:00:17]}  Re7 {[%clk 0:00:08]} 52. Rb6+ {[%clk 0:00:17]}  Kg7 {[%clk 0:00:08]} 53. Rb8 {[%clk 0:00:17]}  f6 {[%clk 0:00:08]} 54. Rb4 {[%clk 0:00:18]}  g5 {[%clk 0:00:08]} 55. Rb6 {[%clk 0:00:19]}  Kg6 {[%clk 0:00:08]} 56. Rb5 {[%clk 0:00:18]}  g4+ {[%clk 0:00:09]} 57. Kf4 {[%clk 0:00:18]}  Re1 {[%clk 0:00:08]} 58. Rb6 {[%clk 0:00:18]}  Rf1+ {[%clk 0:00:08]} 59. Ke4 {[%clk 0:00:18]}  Rf3 {[%clk 0:00:09]} 60. Rb8 {[%clk 0:00:15]}  Rxg3 {[%clk 0:00:09]} 61. Rg8+ {[%clk 0:00:15]}  Kf7 {[%clk 0:00:10]} 62. Rh8 {[%clk 0:00:15]}  Rg1 {[%clk 0:00:09]} 63. Rxh5 {[%clk 0:00:15]}  g3 {[%clk 0:00:09]} 64. Kf3 {[%clk 0:00:15]}  Kg6 {[%clk 0:00:09]} 65. Rh8 {[%clk 0:00:15]}  g2 {[%clk 0:00:09]} 66. Kf2 {[%clk 0:00:15]}  Ra1 {[%clk 0:00:08]} 67. Kxg2 {[%clk 0:00:15]}  Ra3 {[%clk 0:00:07]} 68. Kh2 {[%clk 0:00:15]}  f5 {[%clk 0:00:07]} 69. Kg2 {[%clk 0:00:16]}  f4 {[%clk 0:00:07]} 70. Kf2 {[%clk 0:00:15]}  Rh3 {[%clk 0:00:07]} 71. Kg2 {[%clk 0:00:15]}  Rg3+ {[%clk 0:00:07]} 72. Kh2 {[%clk 0:00:15]}  Kf5 {[%clk 0:00:07]} 73. Rf8+ {[%clk 0:00:15]}  Ke4 {[%clk 0:00:06]} 74. h5 {[%clk 0:00:14]}  Rg5 {[%clk 0:00:06]} 75. Rh8 {[%clk 0:00:13]}  f3 {[%clk 0:00:06]} 76. h6 {[%clk 0:00:13]}  f2 {[%clk 0:00:06]} 77. Rf8 {[%clk 0:00:13]}  Rh5+ {[%clk 0:00:06]} 78. Kg2 {[%clk 0:00:13]}  Rxh6 {[%clk 0:00:06]} 79. Kxf2 {[%clk 0:00:13]}  Ke5 {[%clk 0:00:07]} 80. Rf3 {[%clk 0:00:13]}  Rf6 {[%clk 0:00:08]} 81. Rxf6 {[%clk 0:00:14]}  Kxf6 {[%clk 0:00:08]} 1/2-1/2


[Site "https://www.chess.com"]